Workbook

Sheet КП
K1: Оренбург | N1: =TODAY() -> 2015-03-26
Q73: 0
Q74: 0.025
Q75: 0.05
Q76: 0.075
Q77: 0.1
Q78: 0.125
Q79: 0.15
Q108: =#REF! -> 
Q109: =#REF! -> 
Q110: =#REF! -> 
Q111: =#REF! -> 
Q112: =#REF! -> 

Sheet прайс
A1: ПРАЙС-ЛИСТ НА РАЗМЕЩЕНИЕ РЕКЛАМЫ В 2ГИС
E2: Рязань
A3: В стоимость включены 4 ежемесячных выпуска.
A4: =[1]Абакан!A4 -> Цены действуют c 01.03.2015 года (начало размещения - с 01.04.2015). Цены указаны в рублях с НДС
A5: Пакетные позиции | E5: ценовая группа 1* | F5: ценовая группа 2* | G5: ценовая группа 3* | H5: ценовая группа 4* | I5: ценовая группа 5*
A7: ПАКЕТ «ВСЁ ВКЛЮЧЕНО» | E7: =G7*1.2 -> 21240 | F7: =G7*1.1 -> 19470 | G7: =E10+E11+E12 -> 17700 | H7: =G7*0.9 -> 15930 | I7: =G7*0.5 -> 8850
A8: Пакет состоит из баннера и комментария, а также позиции «Реклама в партнерской сети». Баннер останавливает на себе внимание потенциальных клиентов и заметно выделяет вас на фоне списка всех фирм рубрики. Комментарий позволяет объяснить клиенту, чем вы отличаетесь от всех конкурентов. Позиция «Реклама в партнерской сети» позволяет усилить размещение рекламы в ПК-версии 2ГИС и включает в себя размещение в мобильной версии 2ГИС и онлайн-версии 2ГИС, а также в справочниках популярных площадок города, работающих на базе 2ГИС. Площадки-партнеры 2ГИС используют справочники 2ГИС на своих сайтах.
A10: Баннер в рубрике (пакет "Всё включено") | E10: 8850
A11: Комментарий к фирме (пакет "Всё включено") | E11: 3894
A12: Реклама в партнерской сети | E12: 4956
A14: ПАКЕТ «ВСЁ ВКЛЮЧЕНО+» | E14: =G14*1.2 -> 25912.8 | F14: =G14*1.1 -> 23753.4 | G14: =E17+E18+E19 -> 21594 | H14: =G14*0.9 -> 19434.6 | I14: =G14*0.5 -> 10797
A15: Пакет состоит из двойного баннера и комментария, а также позиции «Реклама в партнерской сети». Больший по размеру баннер привлекает больше внимания и гарантирует повышенный интерес потенциального клиента к вашему комментарию. Комментарий позволяет объяснить клиенту, чем вы отличаетесь от всех конкурентов. Позиция «Реклама в партнерской сети» позволяет усилить размещение рекламы в ПК-версии 2ГИС и включает в себя размещение в мобильной версии 2ГИС и онлайн-версии 2ГИС, а также в справочниках популярных площадок города, работающих на базе 2ГИС. Площадки-партнеры 2ГИС используют справочники 2ГИС на своих сайтах.
A17: Двойной баннер в рубрике (пакет "Всё включено") | E17: 12744
A18: Комментарий к фирме (пакет "Всё включено") | E18: =E11 -> 3894
A19: Реклама в партнерской сети | E19: =E12 -> 4956
A21: ПАКЕТ «ДОПОЛНИТЕЛЬНЫЙ» | E21: 6490
A22: Набор позиций, который приобретается в дополнение к пакету «ВСЁ ВКЛЮЧЕНО» или «ВСЁ ВКЛЮЧЕНО+», и позволяет усилить ваше присутствие в 2ГИС. Возможно использование не более 7 позиций или материалов из списка: Подключение одинарного баннера к рубрике; Подключение двойного баннера к рубрике; Дополнительный макет для одинарного баннера; Дополнительный макет для двойного баннера; Выгодные покупки с 2ГИС к фирме; Логотип на карте во всех масштабах в одной рубрике; Рекламная статья (до 120 Кб).
A24: Приоритет в рубрике | E24: ="цена от "&MIN(E25:E51)&" до "&MAX(E25:E51) -> цена от 5428 до 108560
A25: приоритет в рубрике 1-го порядка для одинарного баннера в рубрике | E25: 5428
A26: приоритет в рубрике 2-го порядка для одинарного баннера в рубрике | E26: 10856
A27: приоритет в рубрике 3-го порядка для одинарного баннера в рубрике | E27: 16284
A28: приоритет в рубрике 4-го порядка для одинарного баннера в рубрике | E28: 21712
A29: приоритет в рубрике 5-го порядка для одинарного баннера в рубрике | E29: 27140
A30: приоритет в рубрике 6-го порядка для одинарного баннера в рубрике | E30: 32568
A31: приоритет в рубрике 7-го порядка для одинарного баннера в рубрике | E31: 37996
A32: приоритет в рубрике 8-го порядка для одинарного баннера в рубрике | E32: 43424
A33: приоритет в рубрике 9-го порядка для одинарного баннера в рубрике | E33: 48852
A34: приоритет в рубрике 10-го порядка для одинарного баннера в рубрике | E34: 54280
A35: приоритет в рубрике 11-го порядка для одинарного баннера в рубрике | E35: 59708
A36: приоритет в рубрике 12-го порядка для одинарного баннера в рубрике | E36: 65136
A37: приоритет в рубрике 13-го порядка для одинарного баннера в рубрике | E37: 70564
A38: приоритет в рубрике 14-го порядка для одинарного баннера в рубрике | E38: 75992
A39: приоритет в рубрике 15-го порядка для одинарного баннера в рубрике | E39: 81420
A40: приоритет в рубрике 16-го порядка для одинарного баннера в рубрике | E40: 86848
A41: приоритет в рубрике 17-го порядка для одинарного баннера в рубрике | E41: 92276
A42: приоритет в рубрике 18-го порядка для одинарного баннера в рубрике | E42: 97704
A43: приоритет в рубрике 19-го порядка для одинарного баннера в рубрике | E43: 103132
A44: приоритет в рубрике 20-го порядка для одинарного баннера в рубрике | E44: 108560
A45: приоритет в рубрике 1-го порядка для двойного баннера в рубрике | E45: 10856
A46: приоритет в рубрике 2-го порядка для двойного баннера в рубрике | E46: 21712
A47: приоритет в рубрике 3-го порядка для двойного баннера в рубрике | E47: 32568
A48: приоритет в рубрике 4-го порядка для двойного баннера в рубрике | E48: 43424
A49: приоритет в рубрике 5-го порядка для двойного баннера в рубрике | E49: 54280
A50: приоритет в рубрике 6-го порядка для двойного баннера в рубрике | E50: 65136
A51: приоритет в рубрике 7-го порядка для двойного баннера в рубрике | E51: 75992
A52: приоритет в рубрике 8-го порядка для двойного баннера в рубрике | E52: 86848
A53: приоритет в рубрике 9-го порядка для двойного баннера в рубрике | E53: 97704
A54: приоритет в рубрике 10-го порядка для двойного баннера в рубрике | E54: 108560
A55: приоритет в рубрике 11-го порядка для двойного баннера в рубрике | E55: 119416
A56: приоритет в рубрике 12-го порядка для двойного баннера в рубрике | E56: 130272
A57: приоритет в рубрике 13-го порядка для двойного баннера в рубрике | E57: 141128
A58: приоритет в рубрике 14-го порядка для двойного баннера в рубрике | E58: 151984
A59: приоритет в рубрике 15-го порядка для двойного баннера в рубрике | E59: 162840
A60: приоритет в рубрике 16-го порядка для двойного баннера в рубрике | E60: 173696
A61: приоритет в рубрике 17-го порядка для двойного баннера в рубрике | E61: 184552
A62: приоритет в рубрике 18-го порядка для двойного баннера в рубрике | E62: 195408
A63: приоритет в рубрике 19-го порядка для двойного баннера в рубрике | E63: 206264
A64: приоритет в рубрике 20-го порядка для двойного баннера в рубрике | E64: 217120
A65: Объявление в рубрике | E65: ="цена от "&MIN(E66:E79)&" до "&MAX(E66:E79) -> цена от 6254 до 73278
A66: Объявление в рубрике (рубрика без рекламодателей) | E66: 6254
A67: Объявление в рубрике (рубрика с рекламодателями) | E67: 9440
A68: Объявление 1-го порядка в рубрике | E68: 13570
A69: Объявление 2-го порядка в рубрике | E69: 18998
A70: Объявление 3-го порядка в рубрике | E70: 24426
A71: Объявление 4-го порядка в рубрике | E71: 29854
A72: Объявление 5-го порядка в рубрике | E72: 35282
A73: Объявление 6-го порядка в рубрике | E73: 40710
A74: Объявление 7-го порядка в рубрике | E74: 46138
A75: Объявление 8-го порядка в рубрике | E75: 51566
A76: Объявление 9-го порядка в рубрике | E76: 56994
A77: Объявление 10-го порядка в рубрике | E77: 62422
A78: Объявление 11-го порядка в рубрике | E78: 67850
A79: Объявление 12-го порядка в рубрике | E79: 73278
A80: Объявление 13-го порядка в рубрике | E80: 78706
A81: Объявление 14-го порядка в рубрике | E81: 84134
A82: Объявление 15-го порядка в рубрике | E82: 89562
A83: Объявление 16-го порядка в рубрике | E83: 94990
A84: Объявление 17-го порядка в рубрике | E84: 100418
A85: Объявление 18-го порядка в рубрике | E85: 105846
A86: Объявление 19-го порядка в рубрике | E86: 111274
A87: Объявление 20-го порядка в рубрике | E87: 116702
A88: Эксклюзивные позиции | E88: ="цена от "&MIN(E89:E94)&" до "&MAX(E89:E94) -> цена от 14160 до 26550
A89: Логотип на карте во всех масштабах в рубрике 1-го уровня | E89: 15930
A90: Логотип на карте в детальных масштабах во всех рубриках | E90: 26550
A91: Тематическая подборка | E91: 15104
A92: Контекстный модуль под окном справочника | E92: 14160
A93: Рекламный модуль в окне карты | E93: 15340
A94: Рекламный модуль под окном справочника | E94: 23600
A95: Медийные позиции | E95: ="цена от "&MIN(E97:E120)&" до "&MAX(E97:E120) -> цена от 11210 до 42480
A97: РЕКЛАМНЫЙ МОДУЛЬ НА СТАРТОВОЙ ЗАСТАВКЕ | E97: 35400
A98: Виден всем пользователям в момент запуска программы. Самая большая рекламная площадь в 2ГИС. В стоимость входит рекламная статья.
A100: РЕКЛАМНЫЙ МОДУЛЬ НА ФИНАЛЬНОЙ ЗАСТАВКЕ | E100: 23600
A101: Виден всем пользователям в момент закрытия программы.
A103: БАННЕР-НЕБОСКРЕБ | E103: 42480
A104: Появляется после загрузки программы и остается на мониторе компьютера до момента поиска в справочнике. Его видят все пользователи 2ГИС вне зависимости от того, что они собрались искать в справочнике.
A106: РЕКЛАМА В ПЕЧАТИ | E106: 15340
A107: Видна всем пользователям в момент предварительного просмотра или печати фрагмента карты.
A109: СТАРТ В ОНЛАЙН-ВЕРСИИ | E109: 22420
A110: Виден всем пользователям при заходе на 2gis.ru
A112: СТАРТ В ОНЛАЙН-ВЕРСИИ (С ВИДЕО) | E112: 26904
A113: Виден всем пользователям при заходе на 2gis.ru
A115: МЕДИЙНО-КОНТЕКСТНЫЙ БАННЕР | E115: 12980
A116: Расположен в специальной выделенной области в левом нижнем углу экрана при выборе рубрики на 2gis.ru
A118: SMART-БАННЕР | E118: 11210
A119: Баннер появляется на свободных местах страницы результатов поиска на 2gis.ru
A121: Усиливающие позиции | E121: ="цена от "&MIN(E122:E133)&" до "&MAX(E122:E133) -> цена от 472 до 18526
A122: Рекламная ссылка | E122: 1180
A123: Рекламная ссылка к фирме | E123: 1180
A124: Двойная рекламная ссылка к фирме | E124: 2360
A125: Тройная рекламная ссылка к фирме | E125: 3540
A126: Подключение одинарного баннера к рубрике | E126: 472
A127: Подключение двойного баннера к рубрике | E127: 944
A128: Дополнительная рубрика свыше 5 бесплатных | E128: 1770
A129: Дополнительный макет для одинарного баннера | E129: 2832
A130: Дополнительный макет для двойного баннера | E130: 5664
A131: Выгодные покупки с 2ГИС к фирме | E131: 4720
A132: Логотип на карте во всех масштабах в одной рубрике | E132: 5310
A133: Рекламная статья (до 120 Кб) | E133: 18526
A136: Стоимость, условия оказания Услуг/Дополнительных услуг, не перечисленных в настоящем прайс-листе, в т.ч. в рамках проведения спецпроектов, определяются Исполнителем в индивидуальном порядке и согласуются Сторонами.
A137: НА ОКАЗАНИЕ ДОПОЛНИТЕЛЬНЫХ УСЛУГ (ИНФОРМАЦИОННЫХ) С ИСПОЛЬЗОВАНИЕМ СЕРВИСОВ 2ГИС
A138: Наименование Дополнительных услуг | C138: Стоимость оказания Дополнительных услуг в месяц
A139: Возможность управления (добавления, удаления, изменения порядка отображения) Фотографиями, относящимися к деятельности Заказчика | C139: стоимость Дополнительных услуг включена в стоимость размещения рекламных материалов
A140: Предоставление Заказчику доступа к дополнительным функциональным возможностям Платформы, связанным с созданием Заказчиками Буклетов*
A141: * Предоставление Заказчику доступа к дополнительным функциональным возможностям Платформы, связанным с созданием Заказчиками Буклетов применимо в отношений Заказчиков, информация о которых размечена в Справочнике организаций в рубрике "Новостройки, Бани/сауны, Интернет-провайдеры" и включает в себя следующие функциональные возможности Платформы: возможность задать адрес страницы Буклета, возможность добавления в Буклет функции отправки заявки с использованием Буклета Заказчика пользователями сети Интернет; возможность изменять стандартную иконку в Буклете Заказчика; возможность изменять фоновое изображение Буклета Заказчика; возможность изменять иконки на карте в Буклете Заказчика; возможность добавлять в Буклет десять и более планировок объектов недвижимости.
